{"text_format":"1","workbook":"xlsx","n_sheets":11,"sheets":["Datos (GENERALES)","Datos (RELACIÓN SISTEMAS)","CÁLCULO DE NIVEL AISL","CALIFICACIÓN","COSTE NO AISLAMIENTO","Datos (GENERALES) (IMP)","Datos (RELACIÓN SISTEMAS) (IMP)","CÁLCULO DE NIVEL AISL (IMP)","CALIFICACIÓN (IMP)","COSTE NO AISLAMIENTO (IMP)","Hoja de programación"],"not_rendered":{"charts":0,"images":1,"macros":1,"external_links":0,"defined_names":10,"comments":0,"pivot_tables":0},"unopened":[],"bounds":{"document_bytes":16777216,"sheet_cells":100000,"rows_first":2000,"rows_last":500,"rows_between":2000,"halvings":0,"cell_chars":16384,"cell_head_chars":4096},"cells_cut":0,"cells_raw":0,"read":"whole","date_system":"1900"}

{"sheet":"Datos (GENERALES)","index":0,"n_rows":55,"n_cols":2,"rows_kept":55,"cut":false,"hidden":false,"merged":[]}
[]
[null,"CÓDIGO DE INFORME"]
["HERRAMIENTA ADITIVA DE PREDIAGNÓSTICO DE AISLAMIENTO DE SUPERFICIES CALIENTES EN INSTALACIONES INDUSTRIALES"]
[]
["DATOS GENERALES"]
[]
["PROPIEDAD DE LA INSTALACIÓN"]
[]
["DENOMINACIÓN DE LA INSTALACIÓN"]
[]
["DIRECCIÓN POSTAL"]
[]
["MUNICIPIO"]
[]
["CÓDIGO POSTAL"]
[]
["PROVINCIA"]
[]
["COMUNIDAD AUTÓNOMA",{"$f":"IFERROR((VLOOKUP(B17,'Hoja de programación'!$L$2:$M$54,2,FALSE)),\" \")","v":" "}]
[]
["DATOS DEL INSPECTOR"]
[]
["NOMBRE Y APELLIDOS"]
[]
["RAZÓN SOCIAL"]
[]
["NIF"]
[]
["CIF"]
[]
["DIRECCIÓN POSTAL"]
[]
["MUNICIPIO"]
[]
["PROVINCIA"]
[]
["CÓDIGO POSTAL"]
[]
["COMUNIDAD AUTÓNOMA",{"$f":"IFERROR((VLOOKUP(B35,'Hoja de programación'!$L$2:$M$54,2,FALSE)),\" \")","v":" "}]
[]
["e-mail"]
[]
["DATOS DE LA INSPECCIÓN"]
[]
["FECHA"]
[]
["REPRESENTANTE DE LA PROPIEDAD"]
[]
["ALCANCE DEL ESTUDIO"]
[]
[]
[]
["Ante cualquier duda relativa al uso de esta herramienta, puede contactar con: consultas@andimai.es"]
["Para imprimir el informe aditivo completo, pulse a la vez las teclas \"Control\", \"Mayúsculas\" y \"P\" (Ctrl+Mayus+P)"]
["Versión 1.2.0"]

{"sheet":"Datos (RELACIÓN SISTEMAS)","index":1,"n_rows":26,"n_cols":5,"rows_kept":26,"cut":false,"hidden":false,"merged":[]}
["RELACION DE SUBSISTEMAS, COEFICIENTES CISA y PESOS RELATIVOS"]
[]
["#","DESCRIPCIÓN","CÓDIGO INSPECCIÓN PREVIA","CISA60","PESO (%)"]
[1,null,null,null,{"$f":"IFERROR(D4/$D$24,0)","v":0}]
[2,null,null,null,0]
[3,null,null,null,0]
[4,null,null,null,0]
[5,null,null,null,0]
[6,null,null,null,0]
[7,null,null,null,0]
[8,null,null,null,0]
[9,null,null,null,0]
[10,null,null,null,0]
[11,null,null,null,0]
[12,null,null,null,0]
[13,null,null,null,0]
[14,null,null,null,0]
[15,null,null,null,0]
[16,null,null,null,0]
[17,null,null,null,0]
[18,null,null,null,0]
[19,null,null,null,0]
[20,null,null,null,0]
[null,null,"TOTAL",{"$f":"SUM(D4:D23)","v":0},{"$f":"SUM(E4:E23)","v":0}]
[]
["Para imprimir el informe aditivo completo, pulse a la vez las teclas \"Control\", \"Mayúsculas\" y \"P\" (Ctrl+Mayus+P)"]

{"sheet":"CÁLCULO DE NIVEL AISL","index":2,"n_rows":26,"n_cols":5,"rows_kept":26,"cut":false,"hidden":false,"merged":[]}
["CÁLCULO DE NIVEL DE AISLAMIENTO GLOBAL"]
[]
["#","DESCRIPCIÓN","PESO (%)","NOTA SUBSISTEMA","NOTA PONDERADA"]
[1,{"$f":"IF(('Datos (RELACIÓN SISTEMAS)'!B4=0),\" \",('Datos (RELACIÓN SISTEMAS)'!B4))","v":" "},{"$f":"IF(('Datos (RELACIÓN SISTEMAS)'!E4=0),\" \",('Datos (RELACIÓN SISTEMAS)'!E4))","v":" "},null,{"$f":"IFERROR((ROUND(D4*C4,2)),0)","v":0}]
[2,{"$f":"IF(('Datos (RELACIÓN SISTEMAS)'!B5=0),\" \",('Datos (RELACIÓN SISTEMAS)'!B5))","v":" "},{"$f":"IF(('Datos (RELACIÓN SISTEMAS)'!E5=0),\" \",('Datos (RELACIÓN SISTEMAS)'!E5))","v":" "},null,{"$f":"IFERROR((ROUND(D5*C5,2)),0)","v":0}]
[3,{"$f":"IF(('Datos (RELACIÓN SISTEMAS)'!B6=0),\" \",('Datos (RELACIÓN SISTEMAS)'!B6))","v":" "},{"$f":"IF(('Datos (RELACIÓN SISTEMAS)'!E6=0),\" \",('Datos (RELACIÓN SISTEMAS)'!E6))","v":" "},null,0]
[4,{"$f":"IF(('Datos (RELACIÓN SISTEMAS)'!B7=0),\" \",('Datos (RELACIÓN SISTEMAS)'!B7))","v":" "},{"$f":"IF(('Datos (RELACIÓN SISTEMAS)'!E7=0),\" \",('Datos (RELACIÓN SISTEMAS)'!E7))","v":" "},null,0]
[5,{"$f":"IF(('Datos (RELACIÓN SISTEMAS)'!B8=0),\" \",('Datos (RELACIÓN SISTEMAS)'!B8))","v":" "},{"$f":"IF(('Datos (RELACIÓN SISTEMAS)'!E8=0),\" \",('Datos (RELACIÓN SISTEMAS)'!E8))","v":" "},null,0]
[6,{"$f":"IF(('Datos (RELACIÓN SISTEMAS)'!B9=0),\" \",('Datos (RELACIÓN SISTEMAS)'!B9))","v":" "},{"$f":"IF(('Datos (RELACIÓN SISTEMAS)'!E9=0),\" \",('Datos (RELACIÓN SISTEMAS)'!E9))","v":" "},null,0]
[7,{"$f":"IF(('Datos (RELACIÓN SISTEMAS)'!B10=0),\" \",('Datos (RELACIÓN SISTEMAS)'!B10))","v":" "},{"$f":"IF(('Datos (RELACIÓN SISTEMAS)'!E10=0),\" \",('Datos (RELACIÓN SISTEMAS)'!E10))","v":" "},null,0]
[8,{"$f":"IF(('Datos (RELACIÓN SISTEMAS)'!B11=0),\" \",('Datos (RELACIÓN SISTEMAS)'!B11))","v":" "},{"$f":"IF(('Datos (RELACIÓN SISTEMAS)'!E11=0),\" \",('Datos (RELACIÓN SISTEMAS)'!E11))","v":" "},null,0]
[9,{"$f":"IF(('Datos (RELACIÓN SISTEMAS)'!B12=0),\" \",('Datos (RELACIÓN SISTEMAS)'!B12))","v":" "},{"$f":"IF(('Datos (RELACIÓN SISTEMAS)'!E12=0),\" \",('Datos (RELACIÓN SISTEMAS)'!E12))","v":" "},null,0]
[10,{"$f":"IF(('Datos (RELACIÓN SISTEMAS)'!B13=0),\" \",('Datos (RELACIÓN SISTEMAS)'!B13))","v":" "},{"$f":"IF(('Datos (RELACIÓN SISTEMAS)'!E13=0),\" \",('Datos (RELACIÓN SISTEMAS)'!E13))","v":" "},null,0]
[11,{"$f":"IF(('Datos (RELACIÓN SISTEMAS)'!B14=0),\" \",('Datos (RELACIÓN SISTEMAS)'!B14))","v":" "},{"$f":"IF(('Datos (RELACIÓN SISTEMAS)'!E14=0),\" \",('Datos (RELACIÓN SISTEMAS)'!E14))","v":" "},null,0]
[12,{"$f":"IF(('Datos (RELACIÓN SISTEMAS)'!B15=0),\" \",('Datos (RELACIÓN SISTEMAS)'!B15))","v":" "},{"$f":"IF(('Datos (RELACIÓN SISTEMAS)'!E15=0),\" \",('Datos (RELACIÓN SISTEMAS)'!E15))","v":" "},null,0]
[13,{"$f":"IF(('Datos (RELACIÓN SISTEMAS)'!B16=0),\" \",('Datos (RELACIÓN SISTEMAS)'!B16))","v":" "},{"$f":"IF(('Datos (RELACIÓN SISTEMAS)'!E16=0),\" \",('Datos (RELACIÓN SISTEMAS)'!E16))","v":" "},null,0]
[14,{"$f":"IF(('Datos (RELACIÓN SISTEMAS)'!B17=0),\" \",('Datos (RELACIÓN SISTEMAS)'!B17))","v":" "},{"$f":"IF(('Datos (RELACIÓN SISTEMAS)'!E17=0),\" \",('Datos (RELACIÓN SISTEMAS)'!E17))","v":" "},null,0]
[15,{"$f":"IF(('Datos (RELACIÓN SISTEMAS)'!B18=0),\" \",('Datos (RELACIÓN SISTEMAS)'!B18))","v":" "},{"$f":"IF(('Datos (RELACIÓN SISTEMAS)'!E18=0),\" \",('Datos (RELACIÓN SISTEMAS)'!E18))","v":" "},null,0]
[16,{"$f":"IF(('Datos (RELACIÓN SISTEMAS)'!B19=0),\" \",('Datos (RELACIÓN SISTEMAS)'!B19))","v":" "},{"$f":"IF(('Datos (RELACIÓN SISTEMAS)'!E19=0),\" \",('Datos (RELACIÓN SISTEMAS)'!E19))","v":" "},null,0]
[17,{"$f":"IF(('Datos (RELACIÓN SISTEMAS)'!B20=0),\" \",('Datos (RELACIÓN SISTEMAS)'!B20))","v":" "},{"$f":"IF(('Datos (RELACIÓN SISTEMAS)'!E20=0),\" \",('Datos (RELACIÓN SISTEMAS)'!E20))","v":" "},null,0]
[18,{"$f":"IF(('Datos (RELACIÓN SISTEMAS)'!B21=0),\" \",('Datos (RELACIÓN SISTEMAS)'!B21))","v":" "},{"$f":"IF(('Datos (RELACIÓN SISTEMAS)'!E21=0),\" \",('Datos (RELACIÓN SISTEMAS)'!E21))","v":" "},null,0]
[19,{"$f":"IF(('Datos (RELACIÓN SISTEMAS)'!B22=0),\" \",('Datos (RELACIÓN SISTEMAS)'!B22))","v":" "},{"$f":"IF(('Datos (RELACIÓN SISTEMAS)'!E22=0),\" \",('Datos (RELACIÓN SISTEMAS)'!E22))","v":" "},null,0]
[20,{"$f":"IF(('Datos (RELACIÓN SISTEMAS)'!B23=0),\" \",('Datos (RELACIÓN SISTEMAS)'!B23))","v":" "},{"$f":"IF(('Datos (RELACIÓN SISTEMAS)'!E23=0),\" \",('Datos (RELACIÓN SISTEMAS)'!E23))","v":" "},null,0]
[null,null,null,"TOTAL",{"$f":"SUM(E4:E23)","v":0}]
[]
["Para imprimir el informe aditivo completo, pulse a la vez las teclas \"Control\", \"Mayúsculas\" y \"P\" (Ctrl+Mayus+P)"]

{"sheet":"CALIFICACIÓN","index":3,"n_rows":13,"n_cols":4,"rows_kept":13,"cut":false,"hidden":false,"merged":[]}
["CALIFICACIÓN OBTENIDA GLOBAL"]
[]
[]
[null,null,"NOTA GLOBAL:",{"$f":"'CÁLCULO DE NIVEL AISL'!E24","v":0}]
[]
[]
[null,"Rango","Nota","Recomendaciones"]
[null,"más de 9","Excelente","Mantenimiento Preventivo"]
[null,"de 7 a 9","Bueno","Mantenimiento Preventivo. Actuaciones puntuales"]
[null,"de 5 a 7","Deficiente","Mantemiento Correctivo y Preventivo. Actuaciones de mejora"]
[null,"menos de 5","Muy deficiente","Actuaciones generalizadas de mejora"]
[]
[null,"Para imprimir el informe aditivo completo, pulse a la vez las teclas \"Control\", \"Mayúsculas\" y \"P\" (Ctrl+Mayus+P)"]

{"sheet":"COSTE NO AISLAMIENTO","index":4,"n_rows":26,"n_cols":3,"rows_kept":26,"cut":false,"hidden":false,"merged":[]}
["CÁLCULO DEL COSTE ANUAL APROXIMADO POR SUPERFICIES NO AISLADAS"]
[]
["#","DESCRIPCIÓN","COSTE ANUAL APROXIMADO"]
[1,{"$f":"IF(('Datos (RELACIÓN SISTEMAS)'!B4=0),\" \",('Datos (RELACIÓN SISTEMAS)'!B4))","v":" "},0]
[2,{"$f":"IF(('Datos (RELACIÓN SISTEMAS)'!B5=0),\" \",('Datos (RELACIÓN SISTEMAS)'!B5))","v":" "},0]
[3,{"$f":"IF(('Datos (RELACIÓN SISTEMAS)'!B6=0),\" \",('Datos (RELACIÓN SISTEMAS)'!B6))","v":" "},0]
[4,{"$f":"IF(('Datos (RELACIÓN SISTEMAS)'!B7=0),\" \",('Datos (RELACIÓN SISTEMAS)'!B7))","v":" "},0]
[5,{"$f":"IF(('Datos (RELACIÓN SISTEMAS)'!B8=0),\" \",('Datos (RELACIÓN SISTEMAS)'!B8))","v":" "},0]
[6,{"$f":"IF(('Datos (RELACIÓN SISTEMAS)'!B9=0),\" \",('Datos (RELACIÓN SISTEMAS)'!B9))","v":" "},0]
[7,{"$f":"IF(('Datos (RELACIÓN SISTEMAS)'!B10=0),\" \",('Datos (RELACIÓN SISTEMAS)'!B10))","v":" "},0]
[8,{"$f":"IF(('Datos (RELACIÓN SISTEMAS)'!B11=0),\" \",('Datos (RELACIÓN SISTEMAS)'!B11))","v":" "},0]
[9,{"$f":"IF(('Datos (RELACIÓN SISTEMAS)'!B12=0),\" \",('Datos (RELACIÓN SISTEMAS)'!B12))","v":" "},0]
[10,{"$f":"IF(('Datos (RELACIÓN SISTEMAS)'!B13=0),\" \",('Datos (RELACIÓN SISTEMAS)'!B13))","v":" "},0]
[11,{"$f":"IF(('Datos (RELACIÓN SISTEMAS)'!B14=0),\" \",('Datos (RELACIÓN SISTEMAS)'!B14))","v":" "},0]
[12,{"$f":"IF(('Datos (RELACIÓN SISTEMAS)'!B15=0),\" \",('Datos (RELACIÓN SISTEMAS)'!B15))","v":" "},0]
[13,{"$f":"IF(('Datos (RELACIÓN SISTEMAS)'!B16=0),\" \",('Datos (RELACIÓN SISTEMAS)'!B16))","v":" "},0]
[14,{"$f":"IF(('Datos (RELACIÓN SISTEMAS)'!B17=0),\" \",('Datos (RELACIÓN SISTEMAS)'!B17))","v":" "},0]
[15,{"$f":"IF(('Datos (RELACIÓN SISTEMAS)'!B18=0),\" \",('Datos (RELACIÓN SISTEMAS)'!B18))","v":" "},0]
[16,{"$f":"IF(('Datos (RELACIÓN SISTEMAS)'!B19=0),\" \",('Datos (RELACIÓN SISTEMAS)'!B19))","v":" "},0]
[17,{"$f":"IF(('Datos (RELACIÓN SISTEMAS)'!B20=0),\" \",('Datos (RELACIÓN SISTEMAS)'!B20))","v":" "},0]
[18,{"$f":"IF(('Datos (RELACIÓN SISTEMAS)'!B21=0),\" \",('Datos (RELACIÓN SISTEMAS)'!B21))","v":" "},0]
[19,{"$f":"IF(('Datos (RELACIÓN SISTEMAS)'!B22=0),\" \",('Datos (RELACIÓN SISTEMAS)'!B22))","v":" "},0]
[20,{"$f":"IF(('Datos (RELACIÓN SISTEMAS)'!B23=0),\" \",('Datos (RELACIÓN SISTEMAS)'!B23))","v":" "},0]
[null,null,{"$f":"SUM(C4:C23)","v":0}]
[]
["Para imprimir el informe aditivo completo, pulse a la vez las teclas \"Control\", \"Mayúsculas\" y \"P\" (Ctrl+Mayus+P)"]

{"sheet":"Datos (GENERALES) (IMP)","index":5,"n_rows":58,"n_cols":10,"rows_kept":58,"cut":false,"hidden":true,"merged":[[57,7,57,10],[36,1,36,2],[36,3,36,6],[38,1,38,2],[38,3,38,10],[40,0,40,10],[43,1,54,10],[34,0,34,10],[23,1,23,2],[23,3,23,5],[23,7,23,10],[25,1,25,2],[25,3,26,10],[28,1,28,2],[28,3,28,5],[28,9,28,10],[30,1,30,2],[30,3,30,5],[30,7,30,10],[32,1,32,2],[32,3,32,10],[21,1,21,2],[21,3,21,5],[21,7,21,10],[8,1,8,2],[8,3,8,10],[10,1,10,2],[10,3,11,10],[13,1,13,2],[13,3,13,5],[13,9,13,10],[15,1,15,2],[15,3,15,5],[17,1,17,2],[17,3,17,10],[19,0,19,10],[1,1,2,7],[1,9,1,10],[2,9,2,10],[4,0,4,10],[6,1,6,2],[6,3,6,10]]}
[]
[null,"HERRAMIENTA ADITIVA DE PREDIAGNÓSTICO DE AISLAMIENTO DE SUPERFICIES CALIENTES EN INSTALACIONES INDUSTRIALES",null,null,null,null,null,null,null,"CÓDIGO DE INFORME"]
[null,null,null,null,null,null,null,null,null,{"$f":"IF('Datos (GENERALES)'!B3<>0,'Datos (GENERALES)'!B3,\" \")","v":" "}]
[]
["DATOS GENERALES"]
[]
[null,"PROPIEDAD DE LA INSTALACIÓN",null,{"$f":"IF('Datos (GENERALES)'!B7<>0,'Datos (GENERALES)'!B7,\" \")","v":" "}]
[]
[null,"DENOMINACIÓN DE LA INSTALACIÓN",null,{"$f":"IF('Datos (GENERALES)'!B9<>0,'Datos (GENERALES)'!B9,\" \")","v":" "}]
[]
[null,"DIRECCIÓN POSTAL",null,{"$f":"IF('Datos (GENERALES)'!B11<>0,'Datos (GENERALES)'!B11,\" \")","v":" "}]
[]
[]
[null,"MUNICIPIO",null,{"$f":"IF('Datos (GENERALES)'!B13<>0,'Datos (GENERALES)'!B13,\" \")","v":" "},null,null,"CÓDIGO POSTAL",null,null,{"$f":"IF('Datos (GENERALES)'!B15<>0,'Datos (GENERALES)'!B15,\" \")","v":" "}]
[]
[null,"PROVINCIA",null,{"$f":"IF('Datos (GENERALES)'!B17<>0,'Datos (GENERALES)'!B17,\" \")","v":" "}]
[]
[null,"COMUNIDAD AUTÓNOMA",null,{"$f":"IFERROR((VLOOKUP(D16,'Hoja de programación'!$L$2:$M$54,2,FALSE)),\" \")","v":" "}]
[]
["DATOS DEL INSPECTOR"]
[]
[null,"NOMBRE Y APELLIDOS",null,{"$f":"IF('Datos (GENERALES)'!B23<>0,'Datos (GENERALES)'!B23,\" \")","v":" "},null,null,"NIF",{"$f":"IF('Datos (GENERALES)'!B27<>0,'Datos (GENERALES)'!B27,\" \")","v":" "}]
[]
[null,"RAZÓN SOCIAL",null,{"$f":"IF('Datos (GENERALES)'!B25<>0,'Datos (GENERALES)'!B25,\" \")","v":" "},null,null,"CIF",{"$f":"IF('Datos (GENERALES)'!B29<>0,'Datos (GENERALES)'!B29,\" \")","v":" "}]
[]
[null,"DIRECCIÓN POSTAL",null,{"$f":"IF('Datos (GENERALES)'!B31<>0,'Datos (GENERALES)'!B31,\" \")","v":" "}]
[]
[]
[null,"MUNICIPIO",null,{"$f":"IF('Datos (GENERALES)'!B33<>0,'Datos (GENERALES)'!B33,\" \")","v":" "},null,null,"CÓDIGO POSTAL",null,null,{"$f":"IF('Datos (GENERALES)'!B37<>0,'Datos (GENERALES)'!B37,\" \")","v":" "}]
[]
[null,"PROVINCIA",null,{"$f":"IF('Datos (GENERALES)'!B35<>0,'Datos (GENERALES)'!B35,\" \")","v":" "},null,null,"e-mail",{"$f":"IF('Datos (GENERALES)'!B41<>0,'Datos (GENERALES)'!B41,\" \")","v":" "}]
[]
[null,"COMUNIDAD AUTÓNOMA",null,{"$f":"IFERROR((VLOOKUP(D31,'Hoja de programación'!$L$2:$M$54,2,FALSE)),\" \")","v":" "}]
[]
["DATOS DE LA INSPECCIÓN"]
[]
[null,"FECHA",null,{"$f":"IF('Datos (GENERALES)'!B45<>0,'Datos (GENERALES)'!B45,\" \")","v":" "}]
[]
[null,"REPRESENTANTE DE LA PROPIEDAD",null,{"$f":"IF('Datos (GENERALES)'!B47<>0,'Datos (GENERALES)'!B47,\" \")","v":" "}]
[]
["ALCANCE DEL ESTUDIO"]
[]
[]
[null,{"$f":"IF('Datos (GENERALES)'!B51<>0,'Datos (GENERALES)'!B51,\" \")","v":" "}]
[]
[]
[]
[]
[]
[]
[]
[]
[]
[]
[]
[]
[]
[null,"Ante cualquier duda relativa al uso de esta herramienta, puede contactar con:",null,null,null,null,null,"consultas@andimai.es"]

{"sheet":"Datos (RELACIÓN SISTEMAS) (IMP)","index":6,"n_rows":24,"n_cols":6,"rows_kept":24,"cut":false,"hidden":true,"merged":[[0,0,0,6]]}
["RELACION DE SUBSISTEMAS, COEFICIENTES CISA y PESOS RELATIVOS"]
[]
[null,"#","DESCRIPCIÓN","CÓDIGO INSPECCIÓN PREVIA","CISA60","PESO (%)"]
[null,1,{"$f":"IF('Datos (RELACIÓN SISTEMAS)'!B4=0,\" \",'Datos (RELACIÓN SISTEMAS)'!B4)","v":" "},{"$f":"IF('Datos (RELACIÓN SISTEMAS)'!C4=0,\" \",'Datos (RELACIÓN SISTEMAS)'!C4)","v":" "},{"$f":"IF('Datos (RELACIÓN SISTEMAS)'!D4=0,\" \",'Datos (RELACIÓN SISTEMAS)'!D4)","v":" "},{"$f":"IFERROR(E4/$E$24,0)","v":0}]
[null,2,{"$f":"IF('Datos (RELACIÓN SISTEMAS)'!B5=0,\" \",'Datos (RELACIÓN SISTEMAS)'!B5)","v":" "},{"$f":"IF('Datos (RELACIÓN SISTEMAS)'!C5=0,\" \",'Datos (RELACIÓN SISTEMAS)'!C5)","v":" "},{"$f":"IF('Datos (RELACIÓN SISTEMAS)'!D5=0,\" \",'Datos (RELACIÓN SISTEMAS)'!D5)","v":" "},0]
[null,3,{"$f":"IF('Datos (RELACIÓN SISTEMAS)'!B6=0,\" \",'Datos (RELACIÓN SISTEMAS)'!B6)","v":" "},{"$f":"IF('Datos (RELACIÓN SISTEMAS)'!C6=0,\" \",'Datos (RELACIÓN SISTEMAS)'!C6)","v":" "},{"$f":"IF('Datos (RELACIÓN SISTEMAS)'!D6=0,\" \",'Datos (RELACIÓN SISTEMAS)'!D6)","v":" "},0]
[null,4,{"$f":"IF('Datos (RELACIÓN SISTEMAS)'!B7=0,\" \",'Datos (RELACIÓN SISTEMAS)'!B7)","v":" "},{"$f":"IF('Datos (RELACIÓN SISTEMAS)'!C7=0,\" \",'Datos (RELACIÓN SISTEMAS)'!C7)","v":" "},{"$f":"IF('Datos (RELACIÓN SISTEMAS)'!D7=0,\" \",'Datos (RELACIÓN SISTEMAS)'!D7)","v":" "},0]
[null,5,{"$f":"IF('Datos (RELACIÓN SISTEMAS)'!B8=0,\" \",'Datos (RELACIÓN SISTEMAS)'!B8)","v":" "},{"$f":"IF('Datos (RELACIÓN SISTEMAS)'!C8=0,\" \",'Datos (RELACIÓN SISTEMAS)'!C8)","v":" "},{"$f":"IF('Datos (RELACIÓN SISTEMAS)'!D8=0,\" \",'Datos (RELACIÓN SISTEMAS)'!D8)","v":" "},0]
[null,6,{"$f":"IF('Datos (RELACIÓN SISTEMAS)'!B9=0,\" \",'Datos (RELACIÓN SISTEMAS)'!B9)","v":" "},{"$f":"IF('Datos (RELACIÓN SISTEMAS)'!C9=0,\" \",'Datos (RELACIÓN SISTEMAS)'!C9)","v":" "},{"$f":"IF('Datos (RELACIÓN SISTEMAS)'!D9=0,\" \",'Datos (RELACIÓN SISTEMAS)'!D9)","v":" "},0]
[null,7,{"$f":"IF('Datos (RELACIÓN SISTEMAS)'!B10=0,\" \",'Datos (RELACIÓN SISTEMAS)'!B10)","v":" "},{"$f":"IF('Datos (RELACIÓN SISTEMAS)'!C10=0,\" \",'Datos (RELACIÓN SISTEMAS)'!C10)","v":" "},{"$f":"IF('Datos (RELACIÓN SISTEMAS)'!D10=0,\" \",'Datos (RELACIÓN SISTEMAS)'!D10)","v":" "},0]
[null,8,{"$f":"IF('Datos (RELACIÓN SISTEMAS)'!B11=0,\" \",'Datos (RELACIÓN SISTEMAS)'!B11)","v":" "},{"$f":"IF('Datos (RELACIÓN SISTEMAS)'!C11=0,\" \",'Datos (RELACIÓN SISTEMAS)'!C11)","v":" "},{"$f":"IF('Datos (RELACIÓN SISTEMAS)'!D11=0,\" \",'Datos (RELACIÓN SISTEMAS)'!D11)","v":" "},0]
[null,9,{"$f":"IF('Datos (RELACIÓN SISTEMAS)'!B12=0,\" \",'Datos (RELACIÓN SISTEMAS)'!B12)","v":" "},{"$f":"IF('Datos (RELACIÓN SISTEMAS)'!C12=0,\" \",'Datos (RELACIÓN SISTEMAS)'!C12)","v":" "},{"$f":"IF('Datos (RELACIÓN SISTEMAS)'!D12=0,\" \",'Datos (RELACIÓN SISTEMAS)'!D12)","v":" "},0]
[null,10,{"$f":"IF('Datos (RELACIÓN SISTEMAS)'!B13=0,\" \",'Datos (RELACIÓN SISTEMAS)'!B13)","v":" "},{"$f":"IF('Datos (RELACIÓN SISTEMAS)'!C13=0,\" \",'Datos (RELACIÓN SISTEMAS)'!C13)","v":" "},{"$f":"IF('Datos (RELACIÓN SISTEMAS)'!D13=0,\" \",'Datos (RELACIÓN SISTEMAS)'!D13)","v":" "},0]
[null,11,{"$f":"IF('Datos (RELACIÓN SISTEMAS)'!B14=0,\" \",'Datos (RELACIÓN SISTEMAS)'!B14)","v":" "},{"$f":"IF('Datos (RELACIÓN SISTEMAS)'!C14=0,\" \",'Datos (RELACIÓN SISTEMAS)'!C14)","v":" "},{"$f":"IF('Datos (RELACIÓN SISTEMAS)'!D14=0,\" \",'Datos (RELACIÓN SISTEMAS)'!D14)","v":" "},0]
[null,12,{"$f":"IF('Datos (RELACIÓN SISTEMAS)'!B15=0,\" \",'Datos (RELACIÓN SISTEMAS)'!B15)","v":" "},{"$f":"IF('Datos (RELACIÓN SISTEMAS)'!C15=0,\" \",'Datos (RELACIÓN SISTEMAS)'!C15)","v":" "},{"$f":"IF('Datos (RELACIÓN SISTEMAS)'!D15=0,\" \",'Datos (RELACIÓN SISTEMAS)'!D15)","v":" "},0]
[null,13,{"$f":"IF('Datos (RELACIÓN SISTEMAS)'!B16=0,\" \",'Datos (RELACIÓN SISTEMAS)'!B16)","v":" "},{"$f":"IF('Datos (RELACIÓN SISTEMAS)'!C16=0,\" \",'Datos (RELACIÓN SISTEMAS)'!C16)","v":" "},{"$f":"IF('Datos (RELACIÓN SISTEMAS)'!D16=0,\" \",'Datos (RELACIÓN SISTEMAS)'!D16)","v":" "},0]
[null,14,{"$f":"IF('Datos (RELACIÓN SISTEMAS)'!B17=0,\" \",'Datos (RELACIÓN SISTEMAS)'!B17)","v":" "},{"$f":"IF('Datos (RELACIÓN SISTEMAS)'!C17=0,\" \",'Datos (RELACIÓN SISTEMAS)'!C17)","v":" "},{"$f":"IF('Datos (RELACIÓN SISTEMAS)'!D17=0,\" \",'Datos (RELACIÓN SISTEMAS)'!D17)","v":" "},0]
[null,15,{"$f":"IF('Datos (RELACIÓN SISTEMAS)'!B18=0,\" \",'Datos (RELACIÓN SISTEMAS)'!B18)","v":" "},{"$f":"IF('Datos (RELACIÓN SISTEMAS)'!C18=0,\" \",'Datos (RELACIÓN SISTEMAS)'!C18)","v":" "},{"$f":"IF('Datos (RELACIÓN SISTEMAS)'!D18=0,\" \",'Datos (RELACIÓN SISTEMAS)'!D18)","v":" "},0]
[null,16,{"$f":"IF('Datos (RELACIÓN SISTEMAS)'!B19=0,\" \",'Datos (RELACIÓN SISTEMAS)'!B19)","v":" "},{"$f":"IF('Datos (RELACIÓN SISTEMAS)'!C19=0,\" \",'Datos (RELACIÓN SISTEMAS)'!C19)","v":" "},{"$f":"IF('Datos (RELACIÓN SISTEMAS)'!D19=0,\" \",'Datos (RELACIÓN SISTEMAS)'!D19)","v":" "},0]
[null,17,{"$f":"IF('Datos (RELACIÓN SISTEMAS)'!B20=0,\" \",'Datos (RELACIÓN SISTEMAS)'!B20)","v":" "},{"$f":"IF('Datos (RELACIÓN SISTEMAS)'!C20=0,\" \",'Datos (RELACIÓN SISTEMAS)'!C20)","v":" "},{"$f":"IF('Datos (RELACIÓN SISTEMAS)'!D20=0,\" \",'Datos (RELACIÓN SISTEMAS)'!D20)","v":" "},0]
[null,18,{"$f":"IF('Datos (RELACIÓN SISTEMAS)'!B21=0,\" \",'Datos (RELACIÓN SISTEMAS)'!B21)","v":" "},{"$f":"IF('Datos (RELACIÓN SISTEMAS)'!C21=0,\" \",'Datos (RELACIÓN SISTEMAS)'!C21)","v":" "},{"$f":"IF('Datos (RELACIÓN SISTEMAS)'!D21=0,\" \",'Datos (RELACIÓN SISTEMAS)'!D21)","v":" "},0]
[null,19,{"$f":"IF('Datos (RELACIÓN SISTEMAS)'!B22=0,\" \",'Datos (RELACIÓN SISTEMAS)'!B22)","v":" "},{"$f":"IF('Datos (RELACIÓN SISTEMAS)'!C22=0,\" \",'Datos (RELACIÓN SISTEMAS)'!C22)","v":" "},{"$f":"IF('Datos (RELACIÓN SISTEMAS)'!D22=0,\" \",'Datos (RELACIÓN SISTEMAS)'!D22)","v":" "},0]
[null,20,{"$f":"IF('Datos (RELACIÓN SISTEMAS)'!B23=0,\" \",'Datos (RELACIÓN SISTEMAS)'!B23)","v":" "},{"$f":"IF('Datos (RELACIÓN SISTEMAS)'!C23=0,\" \",'Datos (RELACIÓN SISTEMAS)'!C23)","v":" "},{"$f":"IF('Datos (RELACIÓN SISTEMAS)'!D23=0,\" \",'Datos (RELACIÓN SISTEMAS)'!D23)","v":" "},0]
[null,null,null,"TOTAL",{"$f":"SUM(E4:E23)","v":0},{"$f":"SUM(F4:F23)","v":0}]

{"sheet":"CÁLCULO DE NIVEL AISL (IMP)","index":7,"n_rows":24,"n_cols":6,"rows_kept":24,"cut":false,"hidden":true,"merged":[[0,0,0,6]]}
["CÁLCULO DE NIVEL DE AISLAMIENTO GLOBAL"]
[]
[null,"#","DESCRIPCIÓN","PESO (%)","NOTA SUBSISTEMA","NOTA PONDERADA"]
[null,1,{"$f":"IF(('Datos (RELACIÓN SISTEMAS)'!B4=0),\" \",('Datos (RELACIÓN SISTEMAS)'!B4))","v":" "},{"$f":"IF(('Datos (RELACIÓN SISTEMAS)'!E4=0),\" \",('Datos (RELACIÓN SISTEMAS)'!E4))","v":" "},{"$f":"IF('CÁLCULO DE NIVEL AISL'!D4=0,\" \",'CÁLCULO DE NIVEL AISL'!D4)","v":" "},{"$f":"IFERROR((ROUND(E4*D4,2)),0)","v":0}]
[null,2,{"$f":"IF(('Datos (RELACIÓN SISTEMAS)'!B5=0),\" \",('Datos (RELACIÓN SISTEMAS)'!B5))","v":" "},{"$f":"IF(('Datos (RELACIÓN SISTEMAS)'!E5=0),\" \",('Datos (RELACIÓN SISTEMAS)'!E5))","v":" "},{"$f":"IF('CÁLCULO DE NIVEL AISL'!D5=0,\" \",'CÁLCULO DE NIVEL AISL'!D5)","v":" "},{"$f":"IFERROR((ROUND(E5*D5,2)),0)","v":0}]
[null,3,{"$f":"IF(('Datos (RELACIÓN SISTEMAS)'!B6=0),\" \",('Datos (RELACIÓN SISTEMAS)'!B6))","v":" "},{"$f":"IF(('Datos (RELACIÓN SISTEMAS)'!E6=0),\" \",('Datos (RELACIÓN SISTEMAS)'!E6))","v":" "},{"$f":"IF('CÁLCULO DE NIVEL AISL'!D6=0,\" \",'CÁLCULO DE NIVEL AISL'!D6)","v":" "},0]
[null,4,{"$f":"IF(('Datos (RELACIÓN SISTEMAS)'!B7=0),\" \",('Datos (RELACIÓN SISTEMAS)'!B7))","v":" "},{"$f":"IF(('Datos (RELACIÓN SISTEMAS)'!E7=0),\" \",('Datos (RELACIÓN SISTEMAS)'!E7))","v":" "},{"$f":"IF('CÁLCULO DE NIVEL AISL'!D7=0,\" \",'CÁLCULO DE NIVEL AISL'!D7)","v":" "},0]
[null,5,{"$f":"IF(('Datos (RELACIÓN SISTEMAS)'!B8=0),\" \",('Datos (RELACIÓN SISTEMAS)'!B8))","v":" "},{"$f":"IF(('Datos (RELACIÓN SISTEMAS)'!E8=0),\" \",('Datos (RELACIÓN SISTEMAS)'!E8))","v":" "},{"$f":"IF('CÁLCULO DE NIVEL AISL'!D8=0,\" \",'CÁLCULO DE NIVEL AISL'!D8)","v":" "},0]
[null,6,{"$f":"IF(('Datos (RELACIÓN SISTEMAS)'!B9=0),\" \",('Datos (RELACIÓN SISTEMAS)'!B9))","v":" "},{"$f":"IF(('Datos (RELACIÓN SISTEMAS)'!E9=0),\" \",('Datos (RELACIÓN SISTEMAS)'!E9))","v":" "},{"$f":"IF('CÁLCULO DE NIVEL AISL'!D9=0,\" \",'CÁLCULO DE NIVEL AISL'!D9)","v":" "},0]
[null,7,{"$f":"IF(('Datos (RELACIÓN SISTEMAS)'!B10=0),\" \",('Datos (RELACIÓN SISTEMAS)'!B10))","v":" "},{"$f":"IF(('Datos (RELACIÓN SISTEMAS)'!E10=0),\" \",('Datos (RELACIÓN SISTEMAS)'!E10))","v":" "},{"$f":"IF('CÁLCULO DE NIVEL AISL'!D10=0,\" \",'CÁLCULO DE NIVEL AISL'!D10)","v":" "},0]
[null,8,{"$f":"IF(('Datos (RELACIÓN SISTEMAS)'!B11=0),\" \",('Datos (RELACIÓN SISTEMAS)'!B11))","v":" "},{"$f":"IF(('Datos (RELACIÓN SISTEMAS)'!E11=0),\" \",('Datos (RELACIÓN SISTEMAS)'!E11))","v":" "},{"$f":"IF('CÁLCULO DE NIVEL AISL'!D11=0,\" \",'CÁLCULO DE NIVEL AISL'!D11)","v":" "},0]
[null,9,{"$f":"IF(('Datos (RELACIÓN SISTEMAS)'!B12=0),\" \",('Datos (RELACIÓN SISTEMAS)'!B12))","v":" "},{"$f":"IF(('Datos (RELACIÓN SISTEMAS)'!E12=0),\" \",('Datos (RELACIÓN SISTEMAS)'!E12))","v":" "},{"$f":"IF('CÁLCULO DE NIVEL AISL'!D12=0,\" \",'CÁLCULO DE NIVEL AISL'!D12)","v":" "},0]
[null,10,{"$f":"IF(('Datos (RELACIÓN SISTEMAS)'!B13=0),\" \",('Datos (RELACIÓN SISTEMAS)'!B13))","v":" "},{"$f":"IF(('Datos (RELACIÓN SISTEMAS)'!E13=0),\" \",('Datos (RELACIÓN SISTEMAS)'!E13))","v":" "},{"$f":"IF('CÁLCULO DE NIVEL AISL'!D13=0,\" \",'CÁLCULO DE NIVEL AISL'!D13)","v":" "},0]
[null,11,{"$f":"IF(('Datos (RELACIÓN SISTEMAS)'!B14=0),\" \",('Datos (RELACIÓN SISTEMAS)'!B14))","v":" "},{"$f":"IF(('Datos (RELACIÓN SISTEMAS)'!E14=0),\" \",('Datos (RELACIÓN SISTEMAS)'!E14))","v":" "},{"$f":"IF('CÁLCULO DE NIVEL AISL'!D14=0,\" \",'CÁLCULO DE NIVEL AISL'!D14)","v":" "},0]
[null,12,{"$f":"IF(('Datos (RELACIÓN SISTEMAS)'!B15=0),\" \",('Datos (RELACIÓN SISTEMAS)'!B15))","v":" "},{"$f":"IF(('Datos (RELACIÓN SISTEMAS)'!E15=0),\" \",('Datos (RELACIÓN SISTEMAS)'!E15))","v":" "},{"$f":"IF('CÁLCULO DE NIVEL AISL'!D15=0,\" \",'CÁLCULO DE NIVEL AISL'!D15)","v":" "},0]
[null,13,{"$f":"IF(('Datos (RELACIÓN SISTEMAS)'!B16=0),\" \",('Datos (RELACIÓN SISTEMAS)'!B16))","v":" "},{"$f":"IF(('Datos (RELACIÓN SISTEMAS)'!E16=0),\" \",('Datos (RELACIÓN SISTEMAS)'!E16))","v":" "},{"$f":"IF('CÁLCULO DE NIVEL AISL'!D16=0,\" \",'CÁLCULO DE NIVEL AISL'!D16)","v":" "},0]
[null,14,{"$f":"IF(('Datos (RELACIÓN SISTEMAS)'!B17=0),\" \",('Datos (RELACIÓN SISTEMAS)'!B17))","v":" "},{"$f":"IF(('Datos (RELACIÓN SISTEMAS)'!E17=0),\" \",('Datos (RELACIÓN SISTEMAS)'!E17))","v":" "},{"$f":"IF('CÁLCULO DE NIVEL AISL'!D17=0,\" \",'CÁLCULO DE NIVEL AISL'!D17)","v":" "},0]
[null,15,{"$f":"IF(('Datos (RELACIÓN SISTEMAS)'!B18=0),\" \",('Datos (RELACIÓN SISTEMAS)'!B18))","v":" "},{"$f":"IF(('Datos (RELACIÓN SISTEMAS)'!E18=0),\" \",('Datos (RELACIÓN SISTEMAS)'!E18))","v":" "},{"$f":"IF('CÁLCULO DE NIVEL AISL'!D18=0,\" \",'CÁLCULO DE NIVEL AISL'!D18)","v":" "},0]
[null,16,{"$f":"IF(('Datos (RELACIÓN SISTEMAS)'!B19=0),\" \",('Datos (RELACIÓN SISTEMAS)'!B19))","v":" "},{"$f":"IF(('Datos (RELACIÓN SISTEMAS)'!E19=0),\" \",('Datos (RELACIÓN SISTEMAS)'!E19))","v":" "},{"$f":"IF('CÁLCULO DE NIVEL AISL'!D19=0,\" \",'CÁLCULO DE NIVEL AISL'!D19)","v":" "},0]
[null,17,{"$f":"IF(('Datos (RELACIÓN SISTEMAS)'!B20=0),\" \",('Datos (RELACIÓN SISTEMAS)'!B20))","v":" "},{"$f":"IF(('Datos (RELACIÓN SISTEMAS)'!E20=0),\" \",('Datos (RELACIÓN SISTEMAS)'!E20))","v":" "},{"$f":"IF('CÁLCULO DE NIVEL AISL'!D20=0,\" \",'CÁLCULO DE NIVEL AISL'!D20)","v":" "},0]
[null,18,{"$f":"IF(('Datos (RELACIÓN SISTEMAS)'!B21=0),\" \",('Datos (RELACIÓN SISTEMAS)'!B21))","v":" "},{"$f":"IF(('Datos (RELACIÓN SISTEMAS)'!E21=0),\" \",('Datos (RELACIÓN SISTEMAS)'!E21))","v":" "},{"$f":"IF('CÁLCULO DE NIVEL AISL'!D21=0,\" \",'CÁLCULO DE NIVEL AISL'!D21)","v":" "},0]
[null,19,{"$f":"IF(('Datos (RELACIÓN SISTEMAS)'!B22=0),\" \",('Datos (RELACIÓN SISTEMAS)'!B22))","v":" "},{"$f":"IF(('Datos (RELACIÓN SISTEMAS)'!E22=0),\" \",('Datos (RELACIÓN SISTEMAS)'!E22))","v":" "},{"$f":"IF('CÁLCULO DE NIVEL AISL'!D22=0,\" \",'CÁLCULO DE NIVEL AISL'!D22)","v":" "},0]
[null,20,{"$f":"IF(('Datos (RELACIÓN SISTEMAS)'!B23=0),\" \",('Datos (RELACIÓN SISTEMAS)'!B23))","v":" "},{"$f":"IF(('Datos (RELACIÓN SISTEMAS)'!E23=0),\" \",('Datos (RELACIÓN SISTEMAS)'!E23))","v":" "},{"$f":"IF('CÁLCULO DE NIVEL AISL'!D23=0,\" \",'CÁLCULO DE NIVEL AISL'!D23)","v":" "},0]
[null,null,null,null,"TOTAL",{"$f":"SUM(F4:F23)","v":0}]

{"sheet":"CALIFICACIÓN (IMP)","index":8,"n_rows":10,"n_cols":4,"rows_kept":10,"cut":false,"hidden":true,"merged":[[9,3,9,5],[0,0,0,6],[5,3,5,5],[6,3,6,5],[7,3,7,5],[8,3,8,5]]}
["CALIFICACIÓN OBTENIDA GLOBAL"]
[]
[]
[null,null,"NOTA GLOBAL:",{"$f":"'CÁLCULO DE NIVEL AISL'!E24","v":0}]
[]
[null,"Rango","Nota","Recomendaciones"]
[null,"más de 9","Excelente","Mantenimiento Preventivo"]
[null,"de 7 a 9","Bueno","Mantenimiento Preventivo. Actuaciones puntuales"]
[null,"de 5 a 7","Deficiente","Mantemiento Correctivo y Preventivo.\nActuaciones de mejora"]
[null,"menos de 5","Muy deficiente","Actuaciones generalizadas de mejora"]

{"sheet":"COSTE NO AISLAMIENTO (IMP)","index":9,"n_rows":24,"n_cols":4,"rows_kept":24,"cut":false,"hidden":true,"merged":[[0,0,0,4]]}
["CÁLCULO DEL COSTE ANUAL APROXIMADO POR SUPERFICIES NO AISLADAS"]
[]
[null,"#","DESCRIPCIÓN","COSTE ANUAL APROXIMADO"]
[null,1,{"$f":"IF(('Datos (RELACIÓN SISTEMAS)'!B4=0),\" \",('Datos (RELACIÓN SISTEMAS)'!B4))","v":" "},{"$f":"IF('COSTE NO AISLAMIENTO'!C4=0,0,'COSTE NO AISLAMIENTO'!C4)","v":0}]
[null,2,{"$f":"IF(('Datos (RELACIÓN SISTEMAS)'!B5=0),\" \",('Datos (RELACIÓN SISTEMAS)'!B5))","v":" "},{"$f":"IF('COSTE NO AISLAMIENTO'!C5=0,0,'COSTE NO AISLAMIENTO'!C5)","v":0}]
[null,3,{"$f":"IF(('Datos (RELACIÓN SISTEMAS)'!B6=0),\" \",('Datos (RELACIÓN SISTEMAS)'!B6))","v":" "},{"$f":"IF('COSTE NO AISLAMIENTO'!C6=0,0,'COSTE NO AISLAMIENTO'!C6)","v":0}]
[null,4,{"$f":"IF(('Datos (RELACIÓN SISTEMAS)'!B7=0),\" \",('Datos (RELACIÓN SISTEMAS)'!B7))","v":" "},{"$f":"IF('COSTE NO AISLAMIENTO'!C7=0,0,'COSTE NO AISLAMIENTO'!C7)","v":0}]
[null,5,{"$f":"IF(('Datos (RELACIÓN SISTEMAS)'!B8=0),\" \",('Datos (RELACIÓN SISTEMAS)'!B8))","v":" "},{"$f":"IF('COSTE NO AISLAMIENTO'!C8=0,0,'COSTE NO AISLAMIENTO'!C8)","v":0}]
[null,6,{"$f":"IF(('Datos (RELACIÓN SISTEMAS)'!B9=0),\" \",('Datos (RELACIÓN SISTEMAS)'!B9))","v":" "},{"$f":"IF('COSTE NO AISLAMIENTO'!C9=0,0,'COSTE NO AISLAMIENTO'!C9)","v":0}]
[null,7,{"$f":"IF(('Datos (RELACIÓN SISTEMAS)'!B10=0),\" \",('Datos (RELACIÓN SISTEMAS)'!B10))","v":" "},{"$f":"IF('COSTE NO AISLAMIENTO'!C10=0,0,'COSTE NO AISLAMIENTO'!C10)","v":0}]
[null,8,{"$f":"IF(('Datos (RELACIÓN SISTEMAS)'!B11=0),\" \",('Datos (RELACIÓN SISTEMAS)'!B11))","v":" "},{"$f":"IF('COSTE NO AISLAMIENTO'!C11=0,0,'COSTE NO AISLAMIENTO'!C11)","v":0}]
[null,9,{"$f":"IF(('Datos (RELACIÓN SISTEMAS)'!B12=0),\" \",('Datos (RELACIÓN SISTEMAS)'!B12))","v":" "},{"$f":"IF('COSTE NO AISLAMIENTO'!C12=0,0,'COSTE NO AISLAMIENTO'!C12)","v":0}]
[null,10,{"$f":"IF(('Datos (RELACIÓN SISTEMAS)'!B13=0),\" \",('Datos (RELACIÓN SISTEMAS)'!B13))","v":" "},{"$f":"IF('COSTE NO AISLAMIENTO'!C13=0,0,'COSTE NO AISLAMIENTO'!C13)","v":0}]
[null,11,{"$f":"IF(('Datos (RELACIÓN SISTEMAS)'!B14=0),\" \",('Datos (RELACIÓN SISTEMAS)'!B14))","v":" "},{"$f":"IF('COSTE NO AISLAMIENTO'!C14=0,0,'COSTE NO AISLAMIENTO'!C14)","v":0}]
[null,12,{"$f":"IF(('Datos (RELACIÓN SISTEMAS)'!B15=0),\" \",('Datos (RELACIÓN SISTEMAS)'!B15))","v":" "},{"$f":"IF('COSTE NO AISLAMIENTO'!C15=0,0,'COSTE NO AISLAMIENTO'!C15)","v":0}]
[null,13,{"$f":"IF(('Datos (RELACIÓN SISTEMAS)'!B16=0),\" \",('Datos (RELACIÓN SISTEMAS)'!B16))","v":" "},{"$f":"IF('COSTE NO AISLAMIENTO'!C16=0,0,'COSTE NO AISLAMIENTO'!C16)","v":0}]
[null,14,{"$f":"IF(('Datos (RELACIÓN SISTEMAS)'!B17=0),\" \",('Datos (RELACIÓN SISTEMAS)'!B17))","v":" "},{"$f":"IF('COSTE NO AISLAMIENTO'!C17=0,0,'COSTE NO AISLAMIENTO'!C17)","v":0}]
[null,15,{"$f":"IF(('Datos (RELACIÓN SISTEMAS)'!B18=0),\" \",('Datos (RELACIÓN SISTEMAS)'!B18))","v":" "},{"$f":"IF('COSTE NO AISLAMIENTO'!C18=0,0,'COSTE NO AISLAMIENTO'!C18)","v":0}]
[null,16,{"$f":"IF(('Datos (RELACIÓN SISTEMAS)'!B19=0),\" \",('Datos (RELACIÓN SISTEMAS)'!B19))","v":" "},{"$f":"IF('COSTE NO AISLAMIENTO'!C19=0,0,'COSTE NO AISLAMIENTO'!C19)","v":0}]
[null,17,{"$f":"IF(('Datos (RELACIÓN SISTEMAS)'!B20=0),\" \",('Datos (RELACIÓN SISTEMAS)'!B20))","v":" "},{"$f":"IF('COSTE NO AISLAMIENTO'!C20=0,0,'COSTE NO AISLAMIENTO'!C20)","v":0}]
[null,18,{"$f":"IF(('Datos (RELACIÓN SISTEMAS)'!B21=0),\" \",('Datos (RELACIÓN SISTEMAS)'!B21))","v":" "},{"$f":"IF('COSTE NO AISLAMIENTO'!C21=0,0,'COSTE NO AISLAMIENTO'!C21)","v":0}]
[null,19,{"$f":"IF(('Datos (RELACIÓN SISTEMAS)'!B22=0),\" \",('Datos (RELACIÓN SISTEMAS)'!B22))","v":" "},{"$f":"IF('COSTE NO AISLAMIENTO'!C22=0,0,'COSTE NO AISLAMIENTO'!C22)","v":0}]
[null,20,{"$f":"IF(('Datos (RELACIÓN SISTEMAS)'!B23=0),\" \",('Datos (RELACIÓN SISTEMAS)'!B23))","v":" "},{"$f":"IF('COSTE NO AISLAMIENTO'!C23=0,0,'COSTE NO AISLAMIENTO'!C23)","v":0}]
[null,null,null,{"$f":"SUM(D4:D23)","v":0}]

{"sheet":"Hoja de programación","index":10,"n_rows":54,"n_cols":14,"rows_kept":54,"cut":false,"hidden":true,"merged":[]}
["Datos validación",null,"Percentiles",null,"Cumplimiento",null,null,null,null,"Checklist",null,"Provincias"]
["Sí",null,0,null,"Sí",null,"Nota","Recomendaciones"]
["No",null,0.1,null,"Parcial",null,"Excelente","Mantenimiento Preventivo",null,"X",null,"Albacete","CASTILLA LA MANCHA","02"]
[null,null,0.2,null,"No",null,"Muy bueno","Mantenimiento Preventivo. Actuaciones puntuales",null,null,null,"Alicante/Alacant","COMUNIDAD VALENCIANA","03"]
[null,null,0.3,null,null,null,"Correcto","Mantemiento Correctivo y Preventivo. Actuaciones de mejora",null,null,null,"Almería","ANDALUCÍA","04"]
[null,null,0.4,null,null,null,"Deficiente","Actuaciones generalizadas de mejora",null,null,null,"Araba/Álava","EUSKADI","01"]
[null,null,0.5,null,null,null,null,null,null,null,null,"Asturias","PRINCIPADO DE ASTURIAS","33"]
[null,null,0.6,null,null,null,null,null,null,null,null,"Ávila","CASTILLA Y LEÓN","05"]
[null,null,0.7,null,null,null,null,null,null,null,null,"Badajoz","EXTREMADURA","06"]
[null,null,0.8,null,null,null,null,null,null,null,null,"Balears, Illes","ISLAS BALEARES","07"]
[null,null,0.9,null,null,null,null,null,null,null,null,"Barcelona","CATALUNYA","08"]
[null,null,1,null,null,null,null,null,null,null,null,"Bizkaia","EUSKADI","48"]
[null,null,null,null,null,null,null,null,null,null,null,"Burgos","CASTILLA Y LEÓN","09"]
[null,null,null,null,null,null,null,null,null,null,null,"Cáceres","EXTREMADURA","10"]
[null,null,null,null,null,null,null,null,null,null,null,"Cádiz","ANDALUCÍA","11"]
[null,null,null,null,null,null,null,null,null,null,null,"Cantabria","CANTABRIA","39"]
[null,null,null,null,null,null,null,null,null,null,null,"Castellón/Castelló","COMUNIDAD VALENCIANA","12"]
[null,null,null,null,null,null,null,null,null,null,null,"Ceuta","CEUTA","51"]
[null,null,null,null,null,null,null,null,null,null,null,"Ciudad Real","CASTILLA LA MANCHA","13"]
[null,null,null,null,null,null,null,null,null,null,null,"Córdoba","ANDALUCÍA","14"]
[null,null,null,null,null,null,null,null,null,null,null,"Coruña, A","GALICIA","15"]
[null,null,null,null,null,null,null,null,null,null,null,"Cuenca","CASTILLA LA MANCHA","16"]
[null,null,null,null,null,null,null,null,null,null,null,"Gipuzkoa","EUSKADI","20"]
[null,null,null,null,null,null,null,null,null,null,null,"Girona","CATALUNYA","17"]
[null,null,null,null,null,null,null,null,null,null,null,"Granada","ANDALUCÍA","18"]
[null,null,null,null,null,null,null,null,null,null,null,"Guadalajara","CASTILLA LA MANCHA","19"]
[null,null,null,null,null,null,null,null,null,null,null,"Huelva","ANDALUCÍA","21"]
[null,null,null,null,null,null,null,null,null,null,null,"Huesca","ARAGÓN","22"]
[null,null,null,null,null,null,null,null,null,null,null,"Jaén","ANDALUCÍA","23"]
[null,null,null,null,null,null,null,null,null,null,null,"León","CASTILLA Y LEÓN","24"]
[null,null,null,null,null,null,null,null,null,null,null,"Lleida","CATALUNYA","25"]
[null,null,null,null,null,null,null,null,null,null,null,"Lugo","GALICIA","27"]
[null,null,null,null,null,null,null,null,null,null,null,"Madrid","COMUNIDAD DE MADRID","28"]
[null,null,null,null,null,null,null,null,null,null,null,"Málaga","ANDALUCÍA","29"]
[null,null,null,null,null,null,null,null,null,null,null,"Melilla","MELILLA","52"]
[null,null,null,null,null,null,null,null,null,null,null,"Murcia","MURCIA","30"]
[null,null,null,null,null,null,null,null,null,null,null,"Navarra","NAVARRA","31"]
[null,null,null,null,null,null,null,null,null,null,null,"Ourense","GALICIA","32"]
[null,null,null,null,null,null,null,null,null,null,null,"Palencia","CASTILLA Y LEÓN","34"]
[null,null,null,null,null,null,null,null,null,null,null,"Palmas, Las","CANARIAS","35"]
[null,null,null,null,null,null,null,null,null,null,null,"Pontevedra","GALICIA","36"]
[null,null,null,null,null,null,null,null,null,null,null,"Rioja, La","LA RIOJA","26"]
[null,null,null,null,null,null,null,null,null,null,null,"Salamanca","CASTILLA Y LEÓN","37"]
[null,null,null,null,null,null,null,null,null,null,null,"Santa Cruz de Tenerife","CANARIAS","38"]
[null,null,null,null,null,null,null,null,null,null,null,"Segovia","CASTILLA Y LEÓN","40"]
[null,null,null,null,null,null,null,null,null,null,null,"Sevilla","ANDALUCÍA","41"]
[null,null,null,null,null,null,null,null,null,null,null,"Soria","CASTILLA Y LEÓN","42"]
[null,null,null,null,null,null,null,null,null,null,null,"Tarragona","CATALUNYA","43"]
[null,null,null,null,null,null,null,null,null,null,null,"Teruel","ARAGÓN","44"]
[null,null,null,null,null,null,null,null,null,null,null,"Toledo","CASTILLA LA MANCHA","45"]
[null,null,null,null,null,null,null,null,null,null,null,"Valencia/València","COMUNIDAD VALENCIANA","46"]
[null,null,null,null,null,null,null,null,null,null,null,"Valladolid","CASTILLA Y LEÓN","47"]
[null,null,null,null,null,null,null,null,null,null,null,"Zamora","CASTILLA Y LEÓN","49"]
[null,null,null,null,null,null,null,null,null,null,null,"Zaragoza","ARAGÓN","50"]